[Event "10th Cherry Blossom Classic 2023"]
[Site "Dulles"]
[Date "2023.05.28"]
[Round "5.14"]
[White "Girsh, Daniel"]
[Black "Senft, Sean"]
[Result "0-1"]
[ECO "C84"]
[WhiteElo "2123"]
[BlackElo "2089"]
[Annotator "TA"]
[PlyCount "150"]
[EventDate "2023.05.24"]
[EventType "swiss"]
[EventCountry "USA"]
[SourceTitle "playchess.com"]
[Source "ChessBase"]
[SourceQuality "1"]
[TimeControl "5400+30"]

{[%evp 15,150,27,21,4,31,18,62,56,57,40,55,52,85,12,103,97,114,91,88,77,108,111,109,57,64,54,57,47,74,84,72,79,71,72,70,61,69,40,48,0,0,0,0,-122,-93,-364,-358,-474,-403,-412,-412,-474,-288,-285,-282,-321,-268,-266,-276,-260,-271,-274,-274,-272,-257,-272,-184,-248,-227,-276,-254,-303,-262,-285,-254,-241,-234,-233,-220,-238,-240,-330,-285,-358,-350,-521,-514,-507,-491,-464,-404,-565,-565,-565,-565,-558,-550,-543,-543,-543,-543,-536,-529,-529,-529,-521,-514,-507,-507,-457,-457,-29969,-29970,-29970,-29971,-29970,-29972,-29972,-29973,-29973,-29974,-29973,-29974,-29974,-29975,-29975,-29972,-29977,-29978,-29984,-29985,-29986,-29987,-29988,-29989,-29989,-29990]} 1. e4 {[%emt 0:00:03]} e5 {[%emt 0:04:17]} 2. Nf3 {[%emt 0:00:06]} Nc6 {[%emt 0:00:07]} 3. Bb5 {[%emt 0:00:03]} a6 {[%emt 0:00:07]} 4. Ba4 {[%emt 0:00:02]} Nf6 {[%emt 0:00:09]} 5. d3 {[%emt 0:00:16]} b5 {[%emt 0:02:18]} 6. Bb3 {[%emt 0:00:08]} Be7 {[%emt 0:00:42]} 7. a4 {[%emt 0:00:06]} Bb7 {[%emt 0:01:32]} 8. O-O {[%emt 0:00:09]} O-O {[%emt 0:01:21]} 9. Bd2 {[%emt 0:00:38] 9.Nc3 is the modern continuation. C84: Closed Ruy Lopez: Unusual White 6th moves.} d6 {[%emt 0:09:08]} 10. Na3 {[%emt 0:00:30] [#]} bxa4 $146 {[%emt 0:01:50]} ({Predecessor:} 10... Na7 11. c4 bxa4 12. Bxa4 c5 13. b4 Qc7 14. Bc3 cxb4 15. Bxb4 Nc6 16. Bc3 Nd7 {1-0 Malek,J (2149)-Bujalski,M (1802) POL-ch U20 Pokrzywna 2021 (1)}) 11. Bxa4 {[%emt 0:00:09] White is slightly better.} Nd7 {[%emt 0:02:49]} 12. Bb3 {[%emt 0:06:23]} Kh8 {[%emt 0:13:10]} 13. c3 {[%emt 0:07:44]} Nc5 {[%emt 0:05:18]} 14. Bd5 {[%emt 0:03:23]} (14. Bc2 $1 $16) 14... Nb8 {[%emt 0:08:03]} (14... Nxd3 $11 15. Be3 Nf4) 15. Bxb7 $16 {[%emt 0:03:04]} Nxb7 {[%emt 0:02:12]} 16. Be3 {[%emt 0:01:20]} Nd7 {[%emt 0:02:24]} 17. d4 {[%emt 0:05:46][%cal Bd3d4,Bd4d5][%mdl 32]} Bf6 {[%emt 0:02:54]} 18. d5 {[%emt 0:14:35]} Be7 {[%emt 0:03:30]} 19. Qc2 {[%emt 0:02:24]} ({Better is} 19. Qd3 $16) 19... Qc8 $1 $14 {[%emt 0:01:48]} 20. Nc4 {[%emt 0:00:53][%cal Ba3c4,Bc4e3,Be3f5][%mdl 32]} c6 {[%emt 0:02:36]} 21. Qd3 {[%emt 0:08:35]} cxd5 {[%emt 0:07:45]} 22. Qxd5 {[%emt 0:02:10]} Nf6 {[%emt 0:00:43]} 23. Qd3 {[%emt 0:00:07] Threatens to win with Nb6.} Nc5 {[%emt 0:00:56]} 24. Bxc5 {[%emt 0:01:42]} Qxc5 {[%emt 0:00:08]} 25. Ne3 {[%emt 0:00:29]} Qc6 {[%emt 0:02:25]} 26. Nf5 {[%emt 0:03:46]} Rfe8 {[%emt 0:01:24]} 27. Ng5 {[%emt 0:01:29]} (27. Nd2 $14 {deserves consideration.}) 27... Kg8 $11 {[%emt 0:02:04]} 28. Qg3 {[%emt 0:00:07][%cal Of5g7]} Bf8 {[%emt 0:02:53]} 29. Rad1 {[%emt 0:00:39]} (29. Ne6 $1 $11 {remains equal.} Rxe6 30. Nh6+ Kh8 31. Nxf7+ Kg8 32. Nh6+ Kh8 33. Nf7+ Kg8 34. Nh6+ Kh8 35. Nf7+) 29... g6 {[%emt 0:01:34]} (29... Nxe4 30. Nh6+ (30. Nxe4 Qxe4 31. Nh6+ {[%mdl 64] Deflection} Kh8 $16) 30... gxh6 31. Nxe4+ Kh8 32. Nf6 $18) 30. Qh4 $2 {[%emt 0:08:17][%mdl 8192] Loses the game.} gxf5 $19 {[%emt 0:03:25]} 31. Rd3 {[%emt 0:00:13][%cal Og5h7]} Bg7 {[%emt 0:01:39]} (31... Nxe4 $2 32. Qxh7#) (31... fxe4 32. Nxh7 Nxh7 33. Rg3+ Bg7 34. Qh6 $18) 32. exf5 {[%emt 0:04:16]} h6 {[%emt 0:01:06]} 33. Rg3 {[%emt 0:00:40]} hxg5 {[%emt 0:01:53]} 34. Qxg5 {[%emt 0:00:07][%csl Gg3][%cal Rg5g7] [#]} Kf8 {[%emt 0:00:09] ...Bh8 is the strong threat.} 35. Qxg7+ {[%emt 0:00:03]} Ke7 {[%emt 0:00:04]} 36. Rg6 {[%emt 0:00:36]} d5 {[%emt 0:01:11]} 37. Rg3 {[%emt 0:02:57]} Rg8 {[%emt 0:01:59] Prevents Re1.} 38. Qh6 {[%emt 0:00:09]} Rxg3 {[%emt 0:00:11]} 39. hxg3 {[%emt 0:00:17]} Qd7 {[%emt 0:01:39]} 40. Qe3 {[%emt 0:01:11]} Qd6 {[%emt 0:01:55]} 41. Re1 {[%emt 0:00:12]} (41. Ra1 $142) 41... e4 {[%emt 0:00:23]} 42. Qd4 {[%emt 0:00:59]} Rc8 {[%emt 0:01:52]} 43. b3 {[%emt 0:01:12]} Qc6 {[%emt 0:02:28]} 44. Qe5+ {[%emt 0:00:21]} Kf8 {[%emt 0:00:29]} 45. c4 {[%emt 0:00:14]} dxc4 {[%emt 0:00:56]} 46. bxc4 {[%emt 0:25:00]} Re8 {[%emt 0:00:26]} 47. Qd4 {[%emt 0:00:00]} a5 {[%emt 0:01:16]} 48. Rb1 {[%emt 0:00:00] [#] Black must now prevent Rb6.} e3 $1 {[%emt 0:01:38][%mdl 64] aiming for ...Re4. Decoy} 49. fxe3 {[%emt 0:00:00] [#] And now Rb6 would win.} (49. f3 e2) 49... Qe4 $1 {[%emt 0:00:19]} 50. Ra1 {[%emt 0:00:00]} (50. Rb6 Ng4 51. Qxe4 Rxe4) (50. Qxe4 $142 Rxe4 51. Ra1) 50... Qxe3+ {[%emt 0:00:34]} ({Not} 50... Qxf5 51. Rf1 Qg5 52. Rxf6 $11 (52. Qxf6 Qxf6 53. Rxf6 Ra8 $11)) 51. Qxe3 {[%emt 0:00:00]} Rxe3 {[%emt 0:00:06]} 52. Rxa5 {[%emt 0:00:00][%mdl 4096] Endgame KRN-KR} Rc3 {[%emt 0:00:46]} (52... Rxg3 $2 {is the wrong capture.} 53. Kf1 $19) 53. Ra8+ {[%emt 0:00:00]} Kg7 {[%emt 0:00:06]} 54. Rc8 {[%emt 0:00:00]} Ng4 {[%emt 0:00:05][%cal Rc3c1]} 55. Kf1 {[%emt 0:00:00]} Ne3+ {[%emt 0:00:14]} 56. Ke2 {[%emt 0:00:00]} Rxc4 {[%emt 0:00:30]} 57. Re8 {[%emt 0:00:00]} Nxf5 {[%emt 0:00:15]} 58. Kf3 {[%emt 0:00:00]} Rc3+ {[%emt 0:00:46]} 59. Kf4 {[%emt 0:00:00]} Nxg3 {[%emt 0:01:04]} 60. Re5 {[%emt 0:00:00]} Kf6 {[%emt 0:00:49] ( -> ...Rc4+)} 61. Ra5 {[%emt 0:00:00]} Ne2+ {[%emt 0:00:36]} 62. Ke4 {[%emt 0:00:00]} Kg6 {[%emt 0:00:46]} 63. Ra2 {[%emt 0:00:00]} (63. g4 $19) 63... f5+ {[%emt 0:00:24] Black mates.} 64. Kd5 {[%emt 0:00:00]} Re3 {[%emt 0:00:13]} 65. Ra8 {[%emt 0:00:00]} Kg5 {[%emt 0:00:13]} 66. Rf8 {[%emt 0:00:00]} Kf4 {[%emt 0:00:42]} 67. Rf7 {[%emt 0:00:00]} Ng3 {[%emt 0:00:29]} 68. Ra7 {[%emt 0:00:00]} Re2 {[%emt 0:00:26]} 69. Ra4+ {[%emt 0:00:00]} Kg5 {[%emt 0:00:17]} 70. Ra8 {[%emt 0:00:00]} Rxg2 {[%emt 0:00:11]} 71. Ke6 {[%emt 0:00:00]} Re2+ {[%emt 0:00:10]} 72. Kf7 {[%emt 0:00:00]} f4 {[%emt 0:00:15][%cal Bf5f4,Bf4f3][%mdl 32]} 73. Rg8+ {[%emt 0:00:00]} Kf5 {[%emt 0:00:10]} 74. Rf8 {[%emt 0:00:00]} f3 {[%emt 0:00:23]} 75. Kg7+ {[%emt 0:00:00]} Kg4 {[%emt 0:00:09] Weighted Error Value: White=0.41/Black=0.19 (very precise)} 0-1

[Event "10th Cherry Blossom Classic 2023"]
[Site "Dulles"]
[Date "2023.05.28"]
[Round "5.15"]
[White "Chabris, Christopher"]
[Black "Roselli Mailhe, Bernardo"]
[Result "1/2-1/2"]
[ECO "C92"]
[WhiteElo "2053"]
[BlackElo "2380"]
[Annotator "TA"]
[PlyCount "137"]
[EventDate "2023.05.24"]
[EventType "swiss"]
[EventCountry "USA"]
[SourceTitle "playchess.com"]
[Source "ChessBase"]
[SourceQuality "1"]
[TimeControl "5400+30"]

{[%evp 27,137,24,19,0,0,47,85,77,70,91,88,63,52,1,28,31,31,16,38,0,4,18,29,9,6,-12,-22,-37,-29,-51,-57,-40,-41,-81,-76,-93,-109,-129,-81,-96,-6,-4,0,0,0,0,0,0,0,0,0,-107,0,0,45,52,94,84,100,95,71,0,0,-23,97,120,106,81,81,63,82,81,114,108,114,114,114,81,81,81,114,105,114,114,114,114,114,114,114,114,114,114,114,105,114,114,114,105,114,105,105,105,105,0,0,0,0,0,0,0,0,0]} 1. e4 {[%emt 0:00:02]} e5 {[%emt 0:02:03]} 2. Nf3 {[%emt 0:00:06]} Nc6 {[%emt 0:00:13]} 3. Bb5 {[%emt 0:00:06]} a6 {[%emt 0:00:05]} 4. Ba4 {[%emt 0:00:04]} Nf6 {[%emt 0:00:04]} 5. O-O {[%emt 0:00:11]} Be7 {[%emt 0:00:16]} 6. Re1 {[%emt 0:00:09]} b5 {[%emt 0:00:06]} 7. Bb3 {[%emt 0:00:04]} d6 {[%emt 0:00:10]} 8. c3 {[%emt 0:00:12]} O-O {[%emt 0:00:28]} 9. h3 {[%emt 0:00:04]} Nd7 {[%emt 0:00:37]} 10. d4 {[%emt 0:01:06]} Bf6 {[%emt 0:00:08]} 11. Be3 {[%emt 0:03:29]} exd4 {[%emt 0:06:34]} 12. cxd4 {[%emt 0:01:14]} Na5 {[%emt 0:00:55]} 13. Bc2 {[%emt 0:01:55]} Nc4 {[%emt 0:05:20]} 14. Bc1 {[%emt 0:01:01]} c5 {[%emt 0:01:36]} 15. Nc3 {[%emt 0:15:13] C92: Closed Ruy Lopez: 9...Be6, Karpov and Flohr-Zaitsev Variations.} Bb7 {[%emt 0:07:01]} 16. b3 {[%emt 0:03:45] [#]} Ncb6 $146 {[%emt 0:02:34][%cal Bc4b6,Bb6d5,Bd5b4][%mdl 32]} ({Predecessor:} 16... cxd4 17. Nxd4 Qa5 18. Nce2 Na3 19. Bxa3 Qxa3 20. Nf5 Bxa1 21. Qxa1 Ne5 22. Bb1 f6 {½-½ Fernandez Cardoso,A (2427)-Sanikidze,T (2596) Balaguer op 17th 2012 (3)}) 17. e5 $1 {[%emt 1:10:19] White is better.} dxe5 {[%emt 0:14:40]} 18. dxe5 {[%emt 0:00:00]} Be7 {[%emt 0:00:09]} 19. Ne4 {[%emt 0:00:00][%cal Oe5e6] White has more active pieces. The black rooks are badly placed.} (19. Qd3 {is interesting.} f5 20. exf6 Nxf6 21. Qf5) 19... Re8 {[%emt 0:08:36]} 20. Bf4 {[%emt 0:00:00]} (20. Bd2 $14) 20... Nd5 {[%emt 0:04:08]} 21. Bg3 {[%emt 0:00:00]} Nb4 {[%emt 0:00:43]} 22. Bb1 {[%emt 0:00:00]} Nf8 {[%emt 0:00:37]} 23. Qe2 {[%emt 0:00:00]} Rc8 {[%emt 0:05:46]} 24. a3 {[%emt 0:00:00]} Nd5 {[%emt 0:02:28]} 25. Bc2 {[%emt 0:00:00]} Qa5 {[%emt 0:16:25]} 26. a4 {[%emt 0:00:00]} Nb4 {[%emt 0:01:53]} 27. Bb1 {[%emt 0:00:00]} Qb6 {[%emt 0:00:13]} 28. Qd2 {[%emt 0:00:00]} c4 {[%emt 0:04:47][%cal Bc5c4,Bc4c3][%mdl 32]} 29. axb5 {[%emt 0:00:00]} Bxe4 {[%emt 0:02:25]} 30. Bxe4 {[%emt 0:00:00]} (30. Rxe4 $2 c3 31. Qe2 c2 32. Bxc2 Rxc2 $19) 30... c3 {[%emt 0:00:05]} 31. Qf4 {[%emt 0:00:00]} Ne6 {[%emt 0:01:00]} 32. Qg4 {[%emt 0:00:28]} (32. Qf5 $2 g6 33. Qg4 h5 $19) 32... Qxb5 {[%emt 0:02:59]} 33. Bh4 {[%emt 0:01:34] Hoping for Bxe7.} Bxh4 {[%emt 0:01:18]} (33... Bf8 $17 {aiming for ...c2.} 34. Bf5 g6 35. Bxe6 fxe6) 34. Nxh4 $11 {[%emt 0:00:33]} (34. Qxh4 h6 35. Qg4 c2 $19) 34... Nd3 {[%emt 0:02:45] A dynamic duo of knights.} (34... Qxe5 $2 35. Bxh7+ Kxh7 36. Rxe5 $18) 35. Qf5 {[%emt 0:02:02][%csl LRd3,LRh7] The board is on fire.} g6 $1 {[%emt 0:01:53]} (35... Nxe1 $2 36. Qxh7+ Kf8 37. Nf5 $18) 36. Bxd3 {[%emt 0:00:36]} gxf5 {[%emt 0:00:53]} 37. Bxb5 {[%emt 0:00:05]} axb5 {[%emt 0:00:05]} 38. Nxf5 {[%emt 0:00:25]} Rc7 {[%emt 0:00:47]} 39. b4 {[%emt 0:02:11]} (39. Rac1 $11) 39... Nf4 {[%emt 0:00:25]} (39... c2 $17 {Threatens to win with ...Nf4.} 40. g3 Rd8) 40. Nd6 $1 {[%emt 0:01:07][%csl LRb5,LRe8]} Rb8 {[%emt 0:00:19] Strongly threatening ...c2.} (40... Rd8 $5 {[%cal Rc3c2]} 41. Re4 (41. Nxb5 Rc6 $11) 41... c2 42. Rxf4 c1=Q+ 43. Rxc1 Rxc1+ 44. Kh2 Re1 $11) 41. Re3 {[%emt 0:01:11]} Kf8 {[%emt 0:01:48] [#]} 42. Rc1 $1 $36 {[%emt 0:00:23][%mdl 2048] Keeping Black busy.} Ke7 {[%emt 0:00:47]} 43. g3 {[%emt 0:00:40]} (43. Rexc3 $2 {too greedy.} Rxc3 44. Rd1 (44. Nf5+ $2 Kd7 $19) 44... Nd3 $19) 43... Nd5 {[%emt 0:00:25]} 44. Rd3 {[%emt 0:00:23]} (44. Nf5+ $16 Kf8 45. Rd3 Nxb4 46. Rdxc3 Rxc3 47. Rxc3) 44... Ke6 $1 {[%emt 0:00:37]} 45. Ne4 {[%emt 0:01:08] f4 would be deadly.} Kxe5 {[%emt 0:02:24]} (45... Nxb4 $11 {keeps the balance.} 46. Rdxc3 Rxc3 47. Nxc3 Nd3) 46. Nxc3 $16 {[%emt 0:00:38]} Nxb4 {[%emt 0:00:24]} 47. Re1+ {[%emt 0:00:27]} Kf6 {[%emt 0:01:17] [#]} 48. Rf3+ {[%emt 0:00:30]} Kg7 {[%emt 0:00:08]} 49. Re5 {[%emt 0:00:44]} Nc2 {[%emt 0:02:33]} 50. Nxb5 {[%emt 0:00:33]} Rxb5 {[%emt 0:00:47][%mdl 64] Remove Defender} 51. Rxb5 {[%emt 0:00:11][%mdl 4096] Endgame KRR-KRN} Nd4 {[%emt 0:00:05][%csl LRb5,LRf3] [#]} 52. Rfb3 {[%emt 0:00:56]} Nxb3 {[%emt 0:00:09]} (52... h5 53. Rb7) 53. Rxb3 {[%emt 0:00:03] KR-KR} h6 {[%emt 0:00:14]} 54. Kg2 {[%emt 0:00:15]} Rc4 {[%emt 0:00:07]} 55. Rb5 {[%emt 0:00:09]} Rc3 {[%emt 0:00:06]} 56. Re5 {[%emt 0:00:28]} Ra3 {[%emt 0:00:06]} 57. g4 {[%emt 0:00:15]} Rb3 {[%emt 0:00:05]} 58. f3 {[%emt 0:00:14]} Ra3 {[%emt 0:00:12]} 59. Kg3 {[%emt 0:00:10]} Rb3 {[%emt 0:00:09]} 60. Kf4 {[%emt 0:00:25]} Ra3 {[%emt 0:00:06]} 61. h4 {[%emt 0:01:01]} Ra4+ {[%emt 0:01:49]} 62. Kf5 {[%emt 0:01:03]} Ra3 {[%emt 0:01:00]} 63. f4 {[%emt 0:00:56]} Ra6 {[%emt 0:01:18]} 64. h5 {[%emt 0:00:37]} Ra1 {[%emt 0:00:55]} 65. g5 {[%emt 0:00:48]} (65. Rc5 $16) 65... hxg5 $11 {[%emt 0:00:10] The position is equal.} 66. fxg5 {[%emt 0:00:07]} Rf1+ {[%emt 0:00:05]} 67. Kg4 {[%emt 0:00:49]} Rg1+ {[%emt 0:00:55]} 68. Kf5 {[%emt 0:00:35]} Rf1+ {[%emt 0:00:05]} 69. Kg4 {[%emt 0:00:42] Weighted Error Value: White=0.14 (very precise) /Black=0.14 (very precise)} 1/2-1/2

[Event "10th Cherry Blossom Classic 2023"]
[Site "Dulles"]
[Date "2023.05.28"]
[Round "5.16"]
[White "Slade, Theodore"]
[Black "Aripov, Iskandar"]
[Result "1/2-1/2"]
[ECO "D45"]
[WhiteElo "2021"]
[BlackElo "2211"]
[Annotator "TA"]
[PlyCount "68"]
[EventDate "2023.05.24"]
[EventType "swiss"]
[EventCountry "USA"]
[SourceTitle "playchess.com"]
[Source "ChessBase"]
[SourceQuality "1"]
[TimeControl "5400+30"]

{[%evp 15,68,26,28,0,0,8,6,8,27,-35,-36,-36,-39,-41,-36,-71,-70,-75,-71,-74,-84,-81,-77,-85,-63,-90,-101,-96,-74,-85,-75,-79,-80,-78,-75,-83,-60,-52,0,0,0,-25,-25,-47,-37,-31,0,0,0,0,0,0,0,0,8]} 1. d4 {[%emt 0:00:01]} d5 {[%emt 0:06:03]} 2. c4 {[%emt 0:00:11]} c6 {[%emt 0:00:26]} 3. Nc3 {[%emt 0:00:14]} Nf6 {[%emt 0:00:05]} 4. e3 {[%emt 0:00:10]} e6 {[%emt 0:00:20]} 5. Nf3 {[%emt 0:00:16]} Nbd7 {[%emt 0:00:28]} 6. Qc2 {[%emt 0:00:10]} b6 {[%emt 0:00:29]} 7. Bd3 {[%emt 0:01:03]} Bb7 {[%emt 0:00:04]} 8. O-O {[%emt 0:00:32]} Be7 {[%emt 0:00:15]} 9. e4 {[%emt 0:11:27] Recently 9.Rd1 got a lot of attention. D45: Semi-Slav: 5 e3.} dxe4 {[%emt 0:00:21]} 10. Nxe4 {[%emt 0:00:14]} Nxe4 {[%emt 0:02:19]} 11. Bxe4 {[%emt 0:00:10]} Nf6 {[%emt 0:00:09]} 12. Bd3 {[%emt 0:00:35]} (12. Bf4 $11) 12... c5 $15 {[%emt 0:00:45] [#]} 13. Qa4+ $146 {[%emt 0:13:45]} ({Predecessor:} 13. dxc5 Bxf3 14. gxf3 Bxc5 15. b4 Bd4 16. Rb1 O-O 17. Bf4 e5 18. Bg3 Rc8 19. Rfe1 Re8 20. Rbd1 {1-0 Gunina,V (2448)-Gaponenko,I (2469) Wch Blitz final (Women) 2010 (8)}) 13... Qd7 {[%emt 0:00:27]} 14. Qxd7+ {[%emt 0:00:12]} Nxd7 {[%emt 0:00:12]} 15. Be3 {[%emt 0:01:06]} Bxf3 {[%emt 0:06:26]} 16. gxf3 {[%emt 0:00:10]} cxd4 {[%emt 0:06:16]} 17. Bxd4 {[%emt 0:00:11][%cal Oa1b1]} Bf6 {[%emt 0:00:06]} 18. Bxf6 {[%emt 0:00:42]} gxf6 {[%emt 0:00:43]} 19. Rfd1 {[%emt 0:10:57]} Ke7 {[%emt 0:01:34]} 20. Be2 {[%emt 0:03:11]} Rhg8+ {[%emt 0:01:11]} 21. Kh1 {[%emt 0:04:27]} f5 {[%emt 1:12:21]} 22. Rd4 {[%emt 0:14:07]} Nf6 {[%emt 0:00:00]} 23. Rc1 {[%emt 0:04:26]} Rad8 {[%emt 0:00:00]} 24. Rcd1 {[%emt 0:00:48]} Rxd4 {[%emt 0:00:00]} 25. Rxd4 $17 {[%emt 0:00:07][%mdl 4096] Endgame KRB-KRN} e5 {[%emt 0:00:00]} 26. Rd3 {[%emt 0:05:21]} Rd8 {[%emt 0:00:00]} ({Black should play} 26... Rc8 $15) 27. Rxd8 $11 {[%emt 0:01:05]} Kxd8 {[%emt 0:00:00] KB-KN} 28. Kg1 {[%emt 0:04:51]} Kd7 {[%emt 0:00:00]} 29. Kf1 {[%emt 0:01:12]} Kd6 {[%emt 0:00:00]} 30. b4 {[%emt 0:01:36]} e4 {[%emt 0:00:00]} 31. f4 {[%emt 0:03:45] The position is equal.} a5 {[%emt 0:00:00]} 32. a3 {[%emt 0:00:14]} axb4 {[%emt 0:00:00]} 33. axb4 {[%emt 0:00:07]} Nd7 {[%emt 0:00:00]} 34. Ke1 {[%emt 0:00:46]} Nb8 {[%emt 0:00:00] Weighted Error Value: White=0.12 (very precise) /Black=0.06 (flawless)} 1/2-1/2

[Event "10th Cherry Blossom Classic 2023"]
[Site "Dulles"]
[Date "2023.05.28"]
[Round "5.17"]
[White "Laddha, Yash Jayesh"]
[Black "Ismayilova, Khanim"]
[Result "1/2-1/2"]
[ECO "B33"]
[WhiteElo "2195"]
[BlackElo "1562"]
[Annotator "TA"]
[PlyCount "109"]
[EventDate "2023.05.24"]
[EventType "swiss"]
[EventCountry "USA"]
[SourceTitle "playchess.com"]
[Source "ChessBase"]
[SourceQuality "1"]
[TimeControl "5400+30"]

{[%evp 31,109,28,41,22,45,37,34,28,54,18,18,18,18,13,17,17,17,18,18,13,16,0,0,0,0,-41,-41,-41,-41,-41,0,0,0,-41,-49,-145,-29,-251,-78,-236,-230,-29980,0,0,0,0,0,0,0,0,0,0,0,0,0,0,0,0,0,0,0,0,0,0,0,0,0,0,0,0,0,0,0,0,0,0,0,-19,0,0]} 1. e4 {[%emt 0:00:03]} c5 {[%emt 0:00:06]} 2. Nf3 {[%emt 0:00:03][%cal Bg1f3,Bf3d4,Bd4b5,Bb5a3,Ba3c2][%mdl 32]} Nc6 {[%emt 0:00:07]} 3. d4 {[%emt 0:00:03]} cxd4 {[%emt 0:00:09]} 4. Nxd4 {[%emt 0:00:04]} Nf6 {[%emt 0:00:10]} 5. Nc3 {[%emt 0:00:03]} e5 {[%emt 0:00:08]} 6. Ndb5 {[%emt 0:00:04]} d6 {[%emt 0:00:09]} 7. Bg5 {[%emt 0:00:04]} a6 {[%emt 0:00:07]} 8. Na3 {[%emt 0:00:03]} b5 {[%emt 0:00:21]} 9. Nd5 {[%emt 0:00:04]} Be7 {[%emt 0:00:08]} 10. Bxf6 {[%emt 0:00:04]} Bxf6 {[%emt 0:00:16]} 11. c3 {[%emt 0:00:05]} O-O {[%emt 0:00:07]} 12. Nc2 {[%emt 0:00:05]} Bg5 {[%emt 0:00:10]} 13. a4 {[%emt 0:00:16]} bxa4 {[%emt 0:01:56]} 14. Rxa4 {[%emt 0:00:26]} a5 {[%emt 0:00:44]} 15. Bc4 {[%emt 0:00:06]} Rb8 {[%emt 0:01:16]} 16. b3 {[%emt 0:00:05]} Kh8 {[%emt 0:04:27]} 17. Nce3 {[%emt 0:00:50] B33: Sicilian: Pelikan and Sveshnikov Variations.} Be6 {[%emt 0:09:33]} 18. h4 {[%emt 0:09:23]} Bxe3 {[%emt 0:10:59]} 19. Nxe3 {[%emt 0:00:06] White is slightly better.} Bxc4 {[%emt 0:00:23]} 20. Rxc4 {[%emt 0:17:33]} Ne7 {[%emt 0:05:44] [#]} 21. O-O $146 {[%emt 0:01:21]} ({Predecessor:} 21. h5 h6 22. g4 f6 23. O-O Qb6 24. b4 axb4 25. cxb4 Rfc8 26. Rxc8+ Rxc8 27. Qd2 {0-1 Rogacka,N (1509)-Karykowska,A (1528) POL-chT U19 2nd League 2014 (2.59)}) 21... f5 {[%emt 0:05:32]} 22. Nxf5 {[%emt 0:01:27]} Nxf5 {[%emt 0:00:10]} 23. exf5 {[%emt 0:00:04]} Rxf5 {[%emt 0:00:04]} 24. Qd5 {[%emt 0:01:17]} Rxb3 {[%emt 0:07:01]} 25. Rc6 {[%emt 0:02:32]} Rb8 {[%emt 0:04:48]} 26. Rxd6 {[%emt 0:01:02]} (26. Qxd6 {simplifies} Qxd6 27. Rxd6 Kg8 28. Ra6) 26... Qxh4 {[%emt 0:01:34] White must now prevent ...Rh5.} 27. g3 {[%emt 0:01:20]} Qg5 {[%emt 0:00:55]} 28. Rd1 {[%emt 0:12:16]} Rbf8 $40 {[%emt 0:01:46][%mdl 128] Black has some attack.} 29. Rd2 {[%emt 0:03:52]} a4 {[%emt 0:03:47]} 30. Ra6 {[%emt 0:15:35]} Qg4 {[%emt 0:10:35]} (30... h6 $5 {[%cal Re5e4]} 31. Ra8 (31. Rxa4 e4 $17) 31... a3 32. Rxf8+ (32. Rxa3 e4 $17) 32... Rxf8 $17) 31. Qc6 {[%emt 0:10:25]} Qg5 {[%emt 0:06:00]} 32. Qd5 {[%emt 0:02:54]} h6 {[%emt 0:04:26][%cal Oe5e4]} 33. Rd6 {[%emt 0:13:38] [#]} ({Reject} 33. Rxa4 e4 34. Qd4 Rf3 $17) (33. Ra8 $1 $15) 33... e4 {[%emt 0:03:50]} 34. Qd4 {[%emt 0:04:17] [#]} (34. Qxe4 $11 Rxf2 {[%mdl 64] Remove Defender, Decoy} 35. Rxf2 Qxg3+ 36. Rg2 Qxd6 37. Qxa4) 34... Rf3 $2 {[%emt 0:07:24]} (34... a3 $1 $19 {and Black stays clearly on top. Strongly threatening ...h5.} 35. Kg2 Ra5) 35. Qxe4 $17 {[%emt 0:01:01]} Rxf2 $1 {[%emt 0:00:22][%mdl 64] Remove Defender, Decoy} ({Stronger than} 35... Rxc3 36. R6d5 Qf6 37. Rd6 $15) 36. Rxh6+ $2 {[%emt 0:02:04]} (36. Rxf2 $19 Qxg3+ 37. Rg2 Qxd6 38. Qxa4) 36... Qxh6 $2 {[%emt 0:06:18]} (36... gxh6 {mates} 37. Qd4+ R2f6 38. Rd3 a3 39. Kg2 a2 40. c4 Qg7 41. Rd1 Rf2+ {[%mdl 64] Promotion} 42. Qxf2 Rxf2+ 43. Kxf2 a1=Q 44. Rxa1 Qxa1 45. c5 Qd4+ 46. Kf3 Qxc5 47. Kf4 Kg7 48. g4 Kf6 49. Ke4 Kg5 50. Kd3 Kxg4 51. Kd2 h5 52. Ke2 Qd4 53. Kf1 Qd2 54. Kg1 Kg3 55. Kh1 Qh2#) 37. Rxf2 {[%emt 0:00:05][%cal Rf2f8][%mdl 4096] Endgame KQR-KQR. The position is equal.} Qc1+ {[%emt 0:02:03]} 38. Kg2 {[%emt 0:00:05][%cal Rf2f8]} Rxf2+ {[%emt 0:00:03]} 39. Kxf2 $11 {[%emt 0:00:04] KQ-KQ} Qd2+ {[%emt 0:00:03]} 40. Kg1 {[%emt 0:00:27]} Qc1+ {[%emt 0:00:54]} 41. Kg2 {[%emt 0:00:27]} Qd2+ {[%emt 0:00:06]} 42. Kg1 {[%emt 0:00:07]} Qc1+ {[%emt 0:01:38]} 43. Kg2 {[%emt 0:00:15]} a3 {[%emt 0:00:06]} 44. Qe8+ {[%emt 0:00:51]} Kh7 {[%emt 0:00:02]} 45. Qh5+ {[%emt 0:06:04]} Qh6 {[%emt 0:00:07]} 46. Qf5+ {[%emt 0:00:00]} Qg6 {[%emt 0:00:18]} 47. Qh3+ {[%emt 0:00:00]} Qh6 {[%emt 0:00:12] ( -> ...Qxh3+)} 48. Qf5+ {[%emt 0:00:00]} g6 {[%emt 0:00:16]} 49. Qd7+ {[%emt 0:00:00]} Qg7 {[%emt 0:01:45]} 50. Qh3+ {[%emt 0:00:00]} Kg8 {[%emt 0:00:04]} 51. Qc8+ {[%emt 0:00:00]} Qf8 {[%emt 0:00:12]} 52. Qa6 {[%emt 0:00:00]} Kg7 {[%emt 0:00:48] ...Qe7 is the strong threat.} 53. Qa7+ {[%emt 0:00:00]} Kh6 {[%emt 0:00:11]} 54. Qe3+ {[%emt 0:00:00]} Kg7 {[%emt 0:00:12] Threatens to win with ...a2.} (54... g5 $5 {[%cal Rf8a8]} 55. Qe6+ Kg7 56. Qd7+ Kf6 57. Qc6+ Kg7 $17) 55. Qa7+ {[%emt 0:00:00] Weighted Error Value: White=0.26 (precise) /Black=0.26 (precise)} 1/2-1/2